bitfinex/quotes_ETHUSD_20220218
["timestamp","ask_amount","ask_price","bid_price","bid_amount"]
[1645148839390,1.71354,2920.0,2919.4,0.00320369]
[1645148839587,0.85676,2920.0,2918.8,1.00668714]
[1645148839789,0.93814434,2919.7,2919.6,0.00320355]
[1645148840793,1.79497434,2919.7,2918.8,1.00668714]
[1645148840993,1.79497434,2919.7,2919.5,0.00320359]
[1645148841395,1.79497434,2919.7,2919.6,3.4]
[1645148841592,3.50876434,2919.7,2919.6,3.4]
[1645148842246,5.5,2919.6,2919.5,0.00320323]
[1645148842446,20.28,2919.4,2918.4,0.1711]
[1645148842654,0.85707,2919.2,2918.4,0.1711]
[1645148842849,0.3,2919.1,2917.7,0.1713]
[1645148843049,0.411,2919.0,2917.7,0.1713]
[1645148843249,0.96839986,2918.3,2917.7,0.1713]
[1645148843448,0.51168122,2919.0,2917.6,0.1713]
[1645148843652,0.85724,2918.3,2917.6,0.1713]
[1645148843853,0.85727,2918.1,2917.6,0.1713]
[1645148844049,0.85727,2918.1,2917.5,0.42892707]
[1645148844454,0.95567781,2918.1,2917.5,0.42892707]
[1645148844650,0.85727,2918.1,2917.7,0.00208948]
[1645148844852,0.961843,2918.1,2917.7,0.00208948]
[1645148845050,0.8573,2918.0,2917.7,0.00208948]
[1645148845249,0.85734,2917.9,2917.7,0.00208948]
[1645148845451,0.85734,2917.9,2917.5,0.42892707]
[1645148845651,1.84454,2917.9,2917.5,0.42892707]
[1645148845989,1.84454,2917.9,2917.7,0.0033974]
[1645148846194,1.84454,2917.9,2917.3,0.01359163]
[1645148846195,2.5,2917.7,2917.3,0.01359163]
[1645148846392,2.35971074,2917.6,2917.3,0.01359163]
[1645148846793,2.35971074,2917.6,2916.3,0.00633739]
[1645148846794,3.21739074,2917.6,2916.3,0.00633739]
[1645148847014,3.21739074,2917.6,2916.4,1.46098792]
[1645148847015,22.63971074,2917.6,2916.4,1.46098792]
[1645148847194,22.63971074,2917.6,2916.3,0.00633739]
[1645148847195,24.35506074,2917.6,2916.3,0.00633739]
[1645148847394,1.7154,2917.2,2916.3,0.00633739]
[1645148847593,0.97184407,2916.9,2916.3,0.00633739]
[1645148847794,1.82958407,2916.9,2916.3,0.00633739]
[1645148848194,0.97184407,2916.9,2916.3,0.00633739]
[1645148848595,1.71548,2916.8,2916.3,0.00633739]
[1645148848894,0.85774,2916.8,2916.3,0.00633739]
[1645148849500,0.85774,2916.8,2916.4,0.00208653]
[1645148850136,0.85774,2916.7,2916.4,0.00208653]
[1645148850337,3.19951169,2916.9,2916.7,0.7008614]
[1645148850743,1.71553,2916.8,2916.7,0.7008614]
[1645148851044,1.71473,2918.0,2916.7,0.7008614]
[1645148851045,2.0333,2917.6,2916.7,0.7008614]
[1645148851242,0.8575,2917.3,2916.7,0.7008614]
[1645148851444,0.85755,2917.2,2916.7,0.7008614]
[1645148851644,0.8575,2917.3,2916.7,0.7008614]
[1645148851842,0.8575,2917.3,2916.9,0.00339907]
[1645148852046,1.17593481,2917.2,2916.9,0.00339907]
[1645148852242,0.85755,2917.1,2916.9,0.00339907]
[1645148852844,0.85755,2917.1,2916.7,4.1008614]
[1645148853244,0.85755,2917.1,2916.9,0.00339907]
[1645148853487,1.15755,2917.1,2916.9,0.00339907]
[1645148853690,2.01517,2917.1,2916.9,0.00339907]
[1645148853890,2.01517,2917.1,2916.7,4.1008614]
[1645148854290,2.01517,2917.1,2916.9,0.00339907]
[1645148854696,22.78917,2917.1,2916.9,0.00339907]
[1645148855093,22.78917,2917.1,2916.7,4.1008614]
[1645148855496,2.50917,2917.1,2916.9,0.00339907]
[1645148856295,2.50917,2917.1,2916.7,4.1008614]
[1645148856695,3.06698,2917.1,2916.9,0.00339907]
[1645148857001,0.494,2917.1,2916.9,0.00339907]
[1645148857261,0.51885498,2917.2,2916.9,0.00339907]
[1645148857652,0.51885498,2917.2,2916.7,4.1008614]
[1645148857859,1.48207761,2917.2,2916.9,0.00339907]
[1645148858055,1.37654498,2917.2,2916.9,0.00339907]
[1645148858259,1.15754,2917.1,2916.9,0.00339907]
[1645148858859,0.85754,2917.1,2916.7,4.1008614]
[1645148859056,0.85754,2917.1,2916.9,0.00339907]
[1645148859057,1.1256267,2917.0,2916.9,0.00339907]
[1645148860060,1.1256267,2917.0,2916.7,4.1008614]
[1645148860061,0.85765,2916.9,2916.7,4.1008614]
[1645148860261,0.51885498,2917.2,2916.8,0.00339911]
[1645148860462,0.58535965,2918.1,2916.8,0.17469911]
[1645148860463,0.50359859,2918.1,2916.8,0.17469911]
[1645148860663,0.50359859,2918.1,2916.8,3.67469911]
[1645148860862,0.50359859,2918.1,2916.8,0.17469911]
[1645148861094,0.50359859,2918.1,2916.8,0.1713]
[1645148861293,1.36086859,2918.1,2916.8,0.1713]
[1645148861494,1.09848574,2917.9,2917.3,0.00339875]
[1645148862092,0.50359859,2918.1,2917.3,0.00339875]
[1645148862293,1.6294,2918.4,2917.2,3.5]
[1645148862294,0.85733,2917.9,2917.2,3.5]
[1645148862496,0.85733,2917.9,2917.2,0.1713]
[1645148862694,0.85733,2917.9,2917.5,0.00339864]
[1645148863300,1.00295442,2917.8,2917.5,0.00339864]
[1645148863502,1.00295442,2917.8,2916.8,3.5]
[1645148863503,0.85746,2917.7,2916.7,4.2721614]
[1645148863700,0.85746,2917.7,2916.8,0.1713]
[1645148863899,0.85746,2917.7,2917.6,0.00339857]
[1645148864740,0.85746,2917.7,2916.9,1.0127441]
[1645148864953,0.85746,2917.7,2917.5,0.00339861]
[1645148865445,1.71481,2917.7,2917.5,0.00339861]
[1645148865847,2.20881,2917.7,2917.5,0.00339861]
[1645148866044,0.85748,2917.4,2916.8,0.1713]
[1645148866252,21.99522,2917.2,2916.7,4.06469102]
[1645148866450,6.8363,2917.1,2916.7,4.06469102]
[1645148866650,6.8363,2917.1,2916.7,3.43827228]
[1645148867046,6.8363,2917.1,2916.7,0.03827228]
[1645148867249,0.85776,2917.0,2916.7,0.03827228]
[1645148867449,0.494,2916.9,2916.7,0.03827228]
[1645148867653,2.20928,2916.9,2916.7,0.03827228]
[1645148868590,0.8576,2916.8,2916.7,0.04166897]
[1645148868992,0.494,2916.9,2916.7,0.04166897]
[1645148869395,0.87520064,2917.2,2916.7,0.04166897]
[1645148869396,0.85753,2917.0,2916.7,0.04166897]
[1645148869595,0.85753,2917.0,2916.7,0.03827228]
[1645148869794,0.85753,2917.0,2916.7,0.04151059]
[1645148870096,0.85753,2916.8,2916.7,0.04151059]
[1645148870699,1.35153,2916.8,2916.7,0.04151059]
[1645148870896,1.35153,2916.8,2916.7,0.03827228]
[1645148872346,1.35153,2916.8,2916.3,0.00633739]
[1645148872347,1.71571,2916.6,2916.3,0.00633739]
[1645148872544,0.494,2916.5,2916.3,0.00633739]
[1645148873547,2.20959,2916.5,2916.3,0.0094762]
[1645148873851,1.71559,2916.5,2916.3,0.0094762]
[1645148874447,2.01559,2916.5,2916.3,0.00633739]
[1645148874649,0.412,2916.4,2916.3,0.00955695]
[1645148875451,0.412,2916.4,2916.3,3.40955695]
[1645148875647,0.412,2916.4,2916.3,3.40633739]
[1645148875849,0.712,2916.4,2916.3,3.40633739]
[1645148876095,0.412,2916.4,2916.3,3.40633739]
[1645148879739,0.712,2916.4,2916.3,3.40633739]
[1645148880141,0.412,2916.4,2916.3,3.40633739]
[1645148880739,0.712,2916.4,2916.3,3.40633739]
[1645148883051,6.5,2916.3,2916.2,0.00191284]
[1645148883247,10.7858,2916.3,2916.2,0.00191284]
[1645148884087,10.7858,2916.3,2915.1,0.13819997]
[1645148884088,2.9858,2916.3,2915.1,0.13819997]
[1645148884289,1.05224486,2916.6,2916.1,0.00186491]
[1645148884487,4.0042773,2916.8,2916.1,0.00186491]
[1645148884687,0.5042773,2916.8,2916.1,0.00186491]
[1645148885290,0.85778,2916.5,2915.2,0.01285945]
[1645148885492,1.13406485,2916.2,2915.9,0.01271676]
[1645148885891,1.71542,2916.7,2915.9,0.01271676]
[1645148886092,1.71542,2916.7,2916.2,1.55887976]
[1645148886692,2.01542,2916.7,2916.3,0.00317871]
[1645148886897,2.87309,2916.7,2916.3,0.00317871]
[1645148887249,1.15767,2916.7,2916.3,0.00317871]
[1645148887649,1.15767,2916.7,2916.2,1.55887976]
[1645148887850,1.15767,2916.7,2916.4,0.00317779]
[1645148888051,0.85764,2916.6,2916.4,0.00317779]
[1645148888952,0.85764,2916.6,2916.2,1.55887976]
[1645148889151,0.85764,2916.6,2916.4,0.00317779]
[1645148889152,0.85768,2916.5,2916.4,0.00317779]
[1645148889953,0.85768,2916.5,2916.2,1.55887976]
[1645148890352,0.85768,2916.5,2916.3,0.00317782]
[1645148891193,0.85768,2916.5,2916.2,1.55887976]
[1645148891395,0.85768,2916.5,2916.3,0.00317553]
[1645148891797,0.50790357,2916.6,2916.3,0.00317553]
[1645148892000,1.71513,2917.1,2916.3,1.46455355]
[1645148892402,2.01513,2917.1,2916.3,1.46137802]
[1645148892697,2.01513,2917.1,2916.5,0.00317537]
[1645148892698,0.85756,2916.8,2916.5,0.00317537]
[1645148892899,1.71523,2916.8,2916.5,0.00317537]
[1645148893099,2.01523,2916.8,2916.5,0.00317537]
[1645148893304,1.15767,2916.8,2916.5,0.00317537]
[1645148893599,1.15767,2916.8,2916.2,1.55887976]
[1645148893902,0.85767,2916.8,2916.5,0.00317537]
[1645148894100,0.85765,2916.7,2916.5,0.00317537]
[1645148894302,2.57316,2916.7,2916.5,0.00317537]
[1645148894504,2.57316,2916.7,2916.2,0.94016455]
[1645148894505,0.85786,2916.5,2916.2,0.94016455]
[1645148895367,0.85788,2916.4,2916.2,0.94016455]
[1645148895566,2.67674647,2916.4,2916.2,0.94016455]
[1645148895766,1.71555,2916.3,2916.2,0.94016455]
[1645148896674,1.71555,2916.3,2916.2,4.34016455]
[1645148899399,1.71555,2916.3,2916.2,4.24016455]
[1645148899600,1.02917,2916.6,2916.2,4.24016455]
[1645148899601,0.1713,2916.6,2916.2,4.24016455]
[1645148899799,0.52226012,2917.0,2916.2,4.24016455]
[1645148900401,0.97314217,2916.9,2916.2,4.24016455]
[1645148901006,0.85757,2916.8,2916.2,4.24016455]
[1645148901208,0.85757,2916.8,2916.4,0.00339365]
[1645148901405,1.15757,2916.8,2916.4,0.00339365]
[1645148901603,0.85757,2916.8,2916.4,0.00339365]
[1645148902103,1.71525,2916.7,2916.2,4.24016455]
[1645148902344,1.71525,2916.7,2916.4,0.00339368]
[1645148902545,0.8576,2916.7,2916.4,0.00339368]
[1645148902745,1.76481805,2916.8,2916.4,1.16816735]
[1645148902948,0.137176,2917.7,2916.5,4.3573]
[1645148902949,0.994476,2917.7,2916.5,4.3573]
[1645148903150,0.137176,2917.7,2916.6,1.46119748]
[1645148903347,0.994446,2917.7,2916.7,0.1713]
[1645148903548,0.994446,2917.7,2916.8,1.46119748]
[1645148903947,0.994446,2917.7,2917.0,1.14635238]
[1645148904148,0.137176,2917.7,2917.0,0.85724]
[1645148904947,0.137176,2917.7,2916.7,0.1713]
[1645148905148,0.137176,2917.7,2916.8,1.71466]
[1645148905352,3.637176,2917.7,2916.4,1.18869402]
[1645148905548,1.165826,2917.7,2916.4,1.18869402]
[1645148905748,1.465826,2917.7,2916.4,1.18869402]
[1645148905995,0.608476,2917.7,2916.5,1.46120924]
[1645148906200,1.10852811,2917.4,2916.5,3.50130923]
[1645148906402,1.10852811,2917.4,2916.6,0.8574]
[1645148906901,0.308476,2917.7,2916.5,2.34009999]
[1645148907098,0.308476,2917.7,2916.6,3.34697929]
[1645148907099,0.137176,2917.7,2916.6,3.34697929]
[1645148907305,0.137176,2917.7,2916.8,0.85732]
[1645148907499,0.137176,2917.7,2916.9,1.46107929]
[1645148907703,0.137176,2917.7,2917.0,5.1713]
[1645148907903,0.137176,2917.7,2917.5,0.92995389]
[1645148908504,0.85721,2918.2,2917.5,0.92995389]
[1645148909105,1.71445,2918.2,2917.5,0.92995389]
[1645148909405,0.85728,2918.0,2917.0,0.1713]
[1645148910048,0.85732,2917.9,2917.0,0.1713]
[1645148910248,4.35732,2917.9,2917.0,0.1713]
[1645148910450,1.04776726,2917.5,2917.0,0.1713]
[1645148910652,0.85746,2917.4,2917.0,0.1713]
[1645148911252,0.85746,2917.4,2916.4,0.00319094]
[1645148911456,0.85746,2917.4,2916.4,1.46439115]
[1645148911653,0.85746,2917.4,2916.4,1.46120021]
[1645148911952,1.15746,2917.4,2916.4,1.46439094]
[1645148912352,1.08322265,2917.0,2916.4,3.17921094]
[1645148912553,1.08322265,2917.0,2916.4,1.71801073]
[1645148912951,0.3,2917.4,2916.4,1.71482]
[1645148913153,0.3,2917.4,2916.4,1.71801065]
[1645148913589,0.82704925,2917.4,2916.4,1.71801065]
[1645148913992,1.14538043,2917.3,2916.4,0.86060065]
[1645148914191,1.14538043,2917.3,2916.4,0.85741]
[1645148914390,0.82704925,2917.4,2916.4,0.86061555]
[1645148914589,0.82704925,2917.4,2916.5,1.46123059]
[1645148914989,0.82704925,2917.4,2916.6,0.85739]
[1645148915392,0.82704925,2917.4,2916.6,0.80739]
[1645148915995,0.82704925,2917.4,2916.7,1.02848526]
[1645148918941,0.82704925,2917.4,2916.4,0.85739]
[1645148919147,0.82704925,2917.4,2916.4,0.86059664]
[1645148919340,0.82704925,2917.4,2916.4,1.71800664]
[1645148919746,0.52704925,2917.4,2916.5,0.85737]
[1645148919948,1.1718,2917.9,2916.5,2.31854781]
[1645148920344,1.1718,2917.9,2916.7,0.85733]
[1645148920549,1.1718,2917.9,2916.8,1.46117781]
[1645148920988,1.1718,2917.9,2917.4,1.1535018]
[1645148921191,1.4718,2917.9,2917.4,1.1535018]
[1645148921393,0.3,2917.9,2917.4,1.1535018]
[1645148921596,0.8573,2917.9,2917.4,1.1535018]
[1645148921895,1.7146,2917.9,2917.4,1.1535018]
[1645148922091,0.1713,2918.3,2917.4,1.1535018]
[1645148922293,2.37375,2918.4,2917.4,1.1535018]
[1645148922294,0.3,2918.4,2917.4,1.1535018]
[1645148922493,0.1713,2918.5,2917.4,1.1535018]
[1645148922696,1.15712,2918.5,2917.4,2.8677718]
[1645148922896,0.85712,2918.5,2917.4,2.8677718]
[1645148923298,0.85712,2918.5,2917.4,1.1535018]
[1645148924197,1.71422,2918.5,2917.9,1.12945104]
[1645148924404,0.85732,2918.3,2917.9,1.12945104]
[1645148924598,1.15732,2918.3,2917.1,1.2431]
[1645148924843,0.3,2918.3,2917.1,1.2431]
[1645148925242,0.85733,2917.9,2917.1,1.2431]
[1645148925442,0.85733,2917.9,2916.9,0.1713]
[1645148925443,0.85733,2917.8,2916.9,0.1713]
[1645148925647,0.85733,2917.8,2917.0,0.99986921]
[1645148926250,0.85735,2917.7,2917.0,0.99986921]
[1645148926447,0.85747,2917.6,2916.9,0.1713]
[1645148928048,0.85747,2917.6,2916.8,1.08301148]
[1645148928249,1.71485,2917.6,2916.8,1.08301148]
[1645148928489,0.85733,2917.8,2916.8,1.08301148]
[1645148928690,1.15733,2917.8,2916.8,1.08301148]
[1645148928991,0.3,2917.8,2916.8,1.08301148]
[1645148929192,4.23290644,2917.9,2916.8,1.08301148]
[1645148929596,0.85731,2917.8,2916.8,1.94032148]
[1645148929890,0.3,2917.8,2916.8,1.08301148]
[1645148930294,0.50343644,2917.9,2916.8,1.08301148]
[1645148930492,0.32079805,2917.9,2916.8,1.08301148]
[1645148930691,0.32079805,2917.9,2916.9,1.4609646]
[1645148931294,0.32079805,2917.9,2917.7,1.11841805]
[1645148931699,0.85718,2918.2,2917.7,1.11841805]
[1645148932748,0.85736,2918.0,2916.9,1.1758]
[1645148932946,0.85738,2917.8,2916.8,4.25733]
[1645148933148,0.85738,2917.8,2916.8,3.4]
[1645148933751,0.85738,2917.8,2916.9,1.10095859]
[1645148933752,0.85734,2917.7,2916.9,1.10095859]
[1645148934048,0.85741,2917.6,2916.9,1.10095859]
[1645148935249,0.85738,2917.5,2916.9,1.10095859]
[1645148935550,1.71477,2917.5,2916.9,1.10095859]
[1645148936495,2.23787862,2917.8,2916.8,3.4]
[1645148936496,0.85731,2917.7,2917.4,0.85738863]
[1645148936895,0.52313862,2917.8,2917.4,0.85738863]
[1645148937899,2.23770862,2917.8,2917.4,0.85738863]
[1645148938097,1.38040862,2917.8,2916.7,1.88584]
[1645148938296,1.38040862,2917.8,2916.8,1.46099918]
[1645148939196,1.33040862,2917.8,2917.2,0.93324435]
[1645148940343,1.71466,2917.7,2917.2,0.93324435]
[1645148941348,0.85735,2917.6,2917.2,0.93324435]
[1645148941548,1.7147,2917.6,2917.2,0.93324435]
[1645148942148,1.7147,2917.6,2916.7,0.1713]
[1645148942348,1.7147,2917.6,2917.2,3.4]
[1645148942553,1.71476,2917.5,2917.2,3.4]
[1645148943147,1.11815251,2917.4,2917.2,3.4]
[1645148943349,3.5,2917.3,2917.2,3.4]
[1645148943607,5.88044,2917.3,2917.2,3.4]
[1645148944001,2.38044,2917.3,2917.2,3.4]
[1645148944202,5.88044,2917.3,2917.2,3.4]
[1645148944606,2.20914,2917.3,2917.2,3.4]
[1645148946008,5.70914,2917.3,2916.4,0.00300666]
[1645148946208,0.85767,2917.0,2916.4,0.00300666]
[1645148946407,1.35169,2916.9,2916.4,0.00300666]
[1645148946607,1.35169,2916.9,2916.2,0.84455261]
[1645148946608,1.65169,2916.9,2916.2,0.84455261]
[1645148946810,1.65169,2916.9,2916.4,0.00300645]
[1645148947445,1.71541,2916.8,2916.4,0.00300645]
[1645148947645,0.494,2916.7,2916.4,0.00300645]
[1645148947853,0.794,2916.7,2916.3,1.46137522]
[1645148948048,0.794,2916.7,2916.4,0.00300642]
[1645148948652,2.50927,2916.7,2916.4,0.00300642]
[1645148948951,2.50927,2916.7,2916.3,1.46137522]
[1645148948952,1.71529,2916.6,2916.3,1.46137522]
[1645148949151,1.35162,2916.5,2916.3,1.46137522]
[1645148949350,1.35162,2916.5,2916.4,0.0030064]
[1645148950158,1.65162,2916.5,2916.2,0.84455261]
[1645148950362,0.85781,2916.4,2916.2,0.84455261]
[1645148950554,0.85781,2916.4,2916.3,0.00300642]
[1645148950753,1.65181,2916.4,2916.3,0.00300642]
[1645148951398,1.65181,2916.4,2916.2,0.84455261]
[1645148951796,1.65181,2916.4,2916.2,0.8475591]
[1645148951999,1.65181,2916.4,2916.2,0.84317104]
[1645148952195,2.5096,2916.4,2916.2,0.84317104]
[1645148952595,2.5096,2916.4,2916.2,3.39699351]
[1645148952802,1.71596,2916.3,2916.2,3.40000003]
[1645148953005,6.5,2916.2,2915.7,0.0120279]
[1645148953202,6.5,2916.2,2915.4,0.00438806]
[1645148953203,2.5,2916.0,2915.4,0.00438806]
[1645148953501,1.67892332,2915.9,2915.0,0.00438806]
[1645148953704,1.67892332,2915.9,2915.1,1.46203315]
[1645148954001,0.85812,2915.7,2915.2,0.00438806]
[1645148954199,0.494,2915.6,2915.2,0.00438806]
[1645148954400,0.494,2915.6,2915.0,0.00438806]
[1645148954599,0.85801,2915.5,2915.1,1.46200298]
[1645148954842,0.494,2915.4,2915.2,0.00438806]
[1645148955243,0.494,2915.4,2915.2,0.0018788]
[1645148955548,1.35201,2915.4,2915.2,0.0018788]
[1645148955953,2.21004,2915.4,2915.2,0.0018788]
[1645148956148,2.21004,2915.4,2914.8,1.4620276]
[1645148956349,2.21004,2915.4,2914.9,1.46641566]
[1645148956551,1.71616,2915.3,2915.2,0.0018788]
[1645148956749,0.15668666,2915.3,2915.2,0.0018788]
[1645148957053,0.65068666,2915.3,2915.2,0.0018788]
[1645148957256,4.15068666,2915.3,2915.2,0.0018788]
[1645148957451,0.85822,2915.1,2914.5,0.00438806]
[1645148957650,0.85822,2915.1,2914.7,0.00748412]
[1645148957651,3.92682,2915.0,2914.7,0.00748412]
[1645148957851,4.22682,2915.0,2914.7,0.00748412]
[1645148958055,4.22682,2915.0,2914.7,0.01187218]
[1645148958250,0.90631595,2914.9,2914.7,0.00748412]
[1645148958493,0.494,2914.8,2914.7,0.00748412]
[1645148958692,0.85822,2914.6,2914.0,0.00438806]
[1645148958892,0.85822,2914.6,2914.2,0.0075926]
[1645148959093,0.794,2914.8,2914.3,1.46240494]
[1645148959094,0.494,2914.8,2914.3,1.46240494]
[1645148959293,1.1899,2915.2,2914.3,1.46240494]
[1645148959492,1.1899,2915.2,2914.4,0.00438806]
[1645148959694,1.1899,2915.2,2914.5,1.46240494]
[1645148959896,0.85803,2915.1,2914.6,0.00438806]
[1645148960096,0.85803,2915.1,2914.8,1.03908833]
[1645148960496,0.85803,2915.1,2914.8,1.04347639]
[1645148960805,1.71606,2915.3,2914.8,1.04347639]
[1645148960999,0.85807,2915.1,2914.8,1.04347639]
[1645148961197,0.85807,2915.1,2914.8,0.00438806]
[1645148961198,1.7161,2915.1,2914.8,0.00438806]
[1645148961401,1.7161,2915.1,2914.8,0.00322727]
[1645148962245,1.7161,2915.1,2914.2,0.97462685]
[1645148962246,2.90872139,2915.1,2914.2,0.97462685]
[1645148962446,2.90872139,2915.1,2914.8,0.0032676]
[1645148962447,3.20872139,2915.1,2914.8,0.0032676]
[1645148962651,3.43268,2915.0,2914.8,0.0032676]
[1645148962849,0.85815,2914.9,2914.8,0.0032676]
[1645148963048,1.15815,2914.9,2914.8,0.0032676]
[1645148963252,0.85815,2914.9,2914.8,0.0032676]
[1645148963453,1.15815,2914.9,2914.3,0.00438806]
[1645148963652,1.71631,2914.9,2914.7,0.00326767]
[1645148963950,1.71631,2914.9,2914.8,3.4]
[1645148964156,5.83529,2915.8,2914.8,3.40438806]
[1645148964357,2.57412,2915.3,2914.8,3.40438806]
[1645148964555,2.57412,2915.3,2915.2,0.96751443]
[1645148964754,2.57412,2915.3,2915.2,0.97190249]
[1645148964955,2.57412,2915.3,2915.2,0.00438806]
[1645148965162,2.57412,2915.3,2914.5,0.01307197]
[1645148965163,26.84812,2915.3,2914.5,0.01307197]
[1645148965359,27.3123,2915.1,2914.9,0.00434677]
[1645148965555,27.3123,2915.1,2914.5,0.01307197]
[1645148965556,21.2453,2915.0,2914.5,0.01307197]
[1645148965855,21.2453,2915.0,2913.7,1.03371224]
[1645148965856,1.1437731,2914.6,2913.7,1.03371224]
[1645148966106,0.494,2914.5,2913.8,0.00434677]
[1645148966300,0.85835,2914.4,2913.8,0.00434677]
[1645148966499,0.85838,2914.2,2913.8,0.00434677]
[1645148966802,1.35238,2914.2,2913.8,0.00434677]
[1645148967000,3.06916,2914.2,2913.8,0.00434677]
[1645148967501,1.10787688,2914.1,2913.8,0.00434677]
[1645148967706,0.85846,2913.8,2912.9,1.8571]
[1645148967908,0.85846,2913.8,2913.2,0.00432727]
[1645148967909,5.1519,2913.8,2913.2,0.00432727]
[1645148968106,2.33305,2913.7,2913.0,0.00432727]
[1645148968306,2.33305,2913.7,2912.7,0.00432727]
[1645148968504,0.97511003,2913.6,2912.7,1.07938814]
[1645148968708,0.85874,2913.3,2912.4,7.25]
[1645148968909,0.85874,2913.3,2911.9,1.538]
[1645148968910,1.35277,2913.2,2911.9,1.538]
[1645148969109,1.52437,2913.2,2911.9,1.538]
[1645148969304,2.82437,2913.2,2911.9,1.538]
[1645148969507,1.9656,2913.2,2911.9,1.538]
[1645148969747,1.9656,2913.2,2912.4,0.00339737]
[1645148969748,0.85881,2912.8,2912.4,0.00339737]
[1645148969948,0.494,2912.7,2912.4,0.00339737]
[1645148970152,0.344,2912.7,2912.4,0.00339737]
[1645148970550,0.494,2913.4,2912.4,0.00339737]
[1645148970748,0.494,2913.4,2912.4,1.46306353]
[1645148970948,0.85855,2913.6,2913.3,0.97575677]
[1645148971152,0.494,2913.8,2912.6,1.2278]
[1645148971354,0.494,2913.8,2912.4,0.00339737]
[1645148971952,0.494,2913.8,2912.1,2.4553]
[1645148972152,0.494,2913.8,2913.0,0.00339698]
[1645148972153,0.85852,2913.4,2913.0,0.00339698]
[1645148972951,0.85852,2913.4,2912.7,1.15398651]
[1645148973150,1.71711,2913.4,2912.7,1.15398651]
[1645148973350,1.71711,2913.4,2913.1,0.00339691]
[1645148973804,2.2115,2913.3,2913.1,0.00339691]
[1645148974210,2.2115,2913.3,2912.7,1.15398651]
[1645148974211,0.8586,2913.2,2912.7,1.15398651]
[1645148974411,1.3526,2913.2,2912.7,1.15398651]
[1645148974609,1.3526,2913.2,2913.1,0.00339691]
[1645148975110,2.21125,2913.2,2913.1,0.00339691]
[1645148975512,2.21125,2913.2,2912.7,3.4]
[1645148975513,0.85871,2913.1,2912.7,3.4]
[1645148975712,2.57632,2913.1,2913.0,0.00339694]
[1645148976011,3.07032,2913.1,2913.0,0.00339694]
[1645148976616,3.07032,2913.1,2912.7,3.4]
[1645148976810,3.46829326,2913.1,2912.7,3.4]
[1645148977010,3.46829326,2913.1,2912.9,0.00339701]
[1645148977011,2.36820613,2913.1,2912.9,0.00339701]
[1645148977842,0.85874,2913.0,2912.7,3.4]
[1645148978045,0.494,2912.9,2912.7,3.4]
[1645148978246,2.01746,2913.0,2912.7,3.4]
[1645148978550,0.1716,2913.9,2912.8,4.63955446]
[1645148978750,0.1716,2913.9,2913.0,3.0]
[1645148978751,0.85844,2913.9,2913.0,3.0]
[1645148978947,0.85842,2914.2,2913.0,3.0]
[1645148979151,0.00671013,2914.3,2913.0,3.0]
[1645148979346,1.2464,2914.6,2912.9,2.0306]
[1645148979347,0.63291013,2915.0,2913.2,4.51201829]
[1645148979548,1.15998261,2914.9,2913.3,3.6715]
[1645148979746,1.15998261,2914.9,2913.3,0.1715]
[1645148979747,1.71663,2914.7,2913.3,0.1715]
[1645148980150,0.85827,2914.5,2913.3,0.1715]
[1645148980347,0.8584,2914.2,2913.2,0.18351829]
[1645148980547,0.8584,2914.2,2913.9,0.00339634]
[1645148980996,1.71679,2914.5,2913.9,0.00339634]
[1645148981399,1.71679,2914.5,2913.8,0.90521982]
[1645148981400,0.85834,2914.2,2913.8,0.90521982]
[1645148981903,0.85834,2914.2,2914.1,0.0033962]
[1645148982403,0.3,2914.2,2914.1,0.0033962]
[1645148982603,0.3,2914.2,2913.1,3.5]
[1645148982803,0.85852,2914.0,2913.0,1.6649]
[1645148983103,0.85852,2914.0,2913.6,0.01358698]
[1645148983301,0.85852,2914.0,2913.9,1.19381084]
[1645148983702,0.85852,2914.0,2913.6,0.01358698]
[1645148983903,0.85852,2914.0,2913.2,0.00430565]
[1645148984105,0.85852,2914.0,2913.8,0.00339638]
[1645148985250,0.85852,2914.0,2913.7,0.00430565]
[1645148985446,0.85852,2914.0,2913.8,0.00339641]
[1645148986150,2.57545,2914.1,2913.8,0.00770206]
[1645148986151,0.08008295,2914.1,2913.8,0.00770206]
[1645148986355,6.00883,2915.2,2913.8,0.14250562]
[1645148986356,1.71648,2914.9,2913.8,0.14250562]
[1645148986552,1.2247,2915.4,2913.9,0.494]
[1645148986553,0.51618713,2915.4,2913.9,0.494]
[1645148986752,3.6713,2915.6,2914.1,0.01211176]
[1645148986753,0.1713,2915.6,2914.1,0.01211176]
[1645148986949,1.71607,2915.2,2914.1,0.01211176]
[1645148987156,0.85802,2915.2,2914.1,0.87015176]
[1645148987452,0.85802,2915.2,2914.7,0.98353817]
[1645148987651,0.85802,2915.2,2914.8,0.00430565]
[1645148988052,0.85802,2915.2,2914.5,0.00339588]
[1645148988498,0.85812,2915.1,2914.5,0.00339588]
[1645148988699,0.85812,2915.1,2914.1,0.00430565]
[1645148988894,1.19487958,2915.0,2914.2,1.10608936]
[1645148989094,1.19487958,2915.0,2914.7,0.00339574]
[1645148989497,1.71642,2914.9,2914.7,0.00339574]
[1645148989701,0.1713,2915.6,2914.7,0.00339574]
[1645148989896,0.1713,2915.6,2914.3,0.00430565]
[1645148990194,0.0033946,2915.7,2914.7,0.00339578]
[1645148990393,0.1713,2915.6,2914.7,0.00339578]
[1645148990594,0.1713,2915.6,2914.8,0.9471369]
[1645148990595,0.85807,2915.5,2914.8,0.9471369]
[1645148990796,1.71607,2915.4,2914.8,0.9471369]
[1645148990996,0.85809,2915.3,2914.8,0.9471369]
[1645148991199,0.85809,2915.3,2914.2,1.24099079]
[1645148991200,0.85809,2915.3,2914.3,0.00430565]
[1645148991398,0.85809,2915.3,2914.9,0.0033957]
[1645148992000,0.85809,2915.2,2914.9,0.0033957]
[1645148992267,1.2145,2915.9,2914.1,8.51197912]
[1645148992461,1.2145,2915.9,2914.2,1.96052309]
[1645148992762,0.00339473,2915.7,2914.9,0.00339568]
[1645148993162,0.00339473,2915.7,2915.1,0.90923725]
[1645148993566,0.85787,2915.7,2914.7,0.86219565]
[1645148993766,0.86126487,2915.7,2914.9,0.00339582]
[1645148994567,0.85799,2915.6,2914.9,0.00339582]
[1645148994773,0.85801,2915.3,2914.7,0.00430565]